Cogmind - Beta 15 *** ADVENTURER MODE // 2025.07.24 @ 12:13:58 Player: willyarr Result: Destroyed by Y-72 Warden with Railgun Performance ------------- Evolutions (7) 3500 Regions Visited (19) 3800 Robots Destroyed (180) 900 Value Destroyed (8603) 8603 Prototype IDs (36) 720 Alien Tech Used (0) 0 Bonus (1650) 1650 TOTAL SCORE: 19173 Bonus ------- Triggered Max Security 1000 High Alert Combat Kills 50 Aligned with FarCom 300 Met Zhirov 300 Cogmind --------- Core Integrity 0/1300 Matter 295/300 Energy 359/425 System Corruption 16% Temperature Cool (9) Movement Core (650) Ox12 Location -3/Testing Parts ------- > --- POWER (2) -------- Antimatter Reactor > --- PROPULSION (5) --- (None) > --- UTILITY (9) ------ Advanced Heat Sink Small Battery Targeting Computer Experimental Targeting Computer Improved Melee Analysis Suite Hacking Suite Improved Dynamic Insulation System > --- WEAPON (5) ------- Matter Neutralizer (fused) Force Lance > --- INVENTORY (5) ---- Micro Antimatter Reactor Graviton Reactor Improved Coolant Injector Improved Weapon Shielding Advanced Point Defense System Peak State ------------ > --- POWER ------------ Antimatter Reactor Micro Antimatter Reactor > --- PROPULSION ------- Combat Gravmag System Improved Antigrav System Improved Antigrav System Improved Antigrav System Improved Antigrav System > --- UTILITY ---------- Advanced Heat Sink Advanced Cooling System Large Storage Unit Small Battery Targeting Computer Experimental Targeting Computer Improved Melee Analysis Suite Nanoactuators Improved Dynamic Insulation System > --- WEAPON ----------- Heavy Proton Cannon Neutron Cannon Enhanced Gauss Cannon Heavy Hardcell Cannon > --- INVENTORY -------- Neutrino Core Micro Antimatter Reactor Graviton Reactor Improved Antigrav System Improved Antigrav System Advanced Heat Sink Small Battery Gravity Neutralizer Advanced Target Analyzer Gamma Rifle Gamma Rifle Plasma Rifle Light Antimatter Cannon Advanced Remote Datajack [Rating: 133] Favorites ----------- Power Light Antimatter Reactor Engine Light Deuterium Engine Power Core Light Nuclear Core Reactor Light Antimatter Reactor Propulsion Combat Gravmag System Wheel Wheel Hover Unit Combat Gravmag System Flight Unit Flying Fortress v7 Utility Large Storage Unit Device Improved Heat Sink Storage Large Storage Unit Processor Advanced Visual Processing Unit Hackware Hacking Suite Protection Improved Medium Armor Plating Weapon Katana Energy Gun Precision Beam Rifle Energy Cannon Advanced Plasma Cannon Ballistic Gun Gauss Rifle Ballistic Cannon Bore Cannon Special Weapon Mining Laser Impact Weapon Powered Hammer Slashing Weapon Katana Piercing Weapon Enhanced Force Lance Special Melee Weapon Improved Datajack Build | -11 -10 -9 -9 -9 -8 -8 -7 -7 -6 -6 -6 -5 -5 -5 -5 -5 -4 -3 -3 ------- Run | Yrd Mat Mat Min Exi Min Mat Fac Sto Fac Low Low Fac Ext Cet Arc Hub Fac Res Tes Slots Evolved 14 | . . 2 . . . 2 2 . 2 . . 2 . . . . 2 2 . Power 1 | . . . . . . . . . . . . . . . . . 1 . . Propulsion 3 | . . . . . . 2 . . . . . . . . . . . 1 . Utility 7 | . . 1 . . . . 2 . 1 . . 2 . . . . . 1 . Weapon 3 | . . 1 . . . . . . 1 . . . . . . . 1 . . Parts Attached 163 | 8 1 11 . 1 4 8 5 7 5 . . 12 17 2 . . 5 71 6 Power 21 | 1 . 2 . . 1 2 . 2 1 . . . 1 . . . 3 8 . Engine 7 | 1 . 2 . . 1 2 . . . . . . . . . . 1 . . Core 4 | . . . . . . . . 2 1 . . . 1 . . . . . . Reactor 10 | . . . . . . . . . . . . . . . . . 2 8 . Propulsion 34 | 3 . 2 . . 1 1 . . . . . 4 1 . . . . 22 . Treads . | . . . . . . . . . . . . . . . . . . . . Leg . | . . . . . . . . . . . . . . . . . . . . Wheel 6 | 3 . 2 . . 1 . . . . . . . . . . . . . . Hover 27 | . . . . . . . . . . . . 4 1 . . . . 22 . Flight 1 | . . . . . . 1 . . . . . . . . . . . . . Utility 55 | 2 . 2 . . . 2 3 3 2 . . 5 10 . . . . 22 4 Device 32 | 1 . 1 . . . 2 1 2 1 . . 4 6 . . . . 14 . Storage 9 | 1 . . . . . . 1 . . . . . . . . . . 4 3 Processor 4 | . . . . . . . . . . . . 1 1 . . . . 2 . Hackware 1 | . . . . . . . . . . . . . . . . . . . 1 Protection 9 | . . 1 . . . . 1 1 1 . . . 3 . . . . 2 . Artifact . | . . . . . . . . . . . . . . . . . . . . Weapon 53 | 2 1 5 . 1 2 3 2 2 2 . . 3 5 2 . . 2 19 2 Energy Gun 16 | 2 1 . . 1 . 1 . . 1 . . . 1 1 . . . 8 . Energy Cannon 7 | . . 1 . . . . . . . . . 1 1 . . . . 3 1 Ballistic Gun 7 | . . . . . 1 . . . . . . 2 . 1 . . 2 1 . Ballistic Cannon 8 | . . 2 . . . 1 1 . . . . . 1 . . . . 3 . Launcher . | . . . . . . . . . . . . . . . . . . . . Special Weapon 1 | . . 1 . . . . . . . . . . . . . . . . . Impact Weapon 2 | . . . . . . . . 1 . . . . . . . . . 1 . Slashing Weapon 7 | . . . . . 1 . . 1 1 . . . 2 . . . . 2 . Piercing Weapon 2 | . . . . . . . . . . . . . . . . . . 1 1 Special Melee Weapon 3 | . . 1 . . . 1 1 . . . . . . . . . . . . Unidentified Prototypes 13 | . . . . . . 1 . . . . . 1 1 . . . 1 6 3 Parts Lost 91 | . . 2 . . 2 . . . 1 . . 7 7 2 . . . 60 10 Power 12 | . . 1 . . 1 . . . . . . 1 1 . . . . 7 1 Propulsion 24 | . . 1 . . 1 . . . . . . . 1 . . . . 16 5 Utility 28 | . . . . . . . . . . . . 3 3 . . . . 20 2 Weapon 27 | . . . . . . . . . 1 . . 3 2 2 . . . 17 2 Highest Loss Streak 18 | . . 1 . . 2 . . . 1 . . 3 2 2 . . . 18 10 To Critical Strikes 2 | . . . . . 1 . . . . . . . . 1 . . . . . Average Backups 11 | 5 8 7 8 6 4 7 10 14 14 14 14 11 13 13 14 14 14 13 5 Power 1 | . 1 . 1 1 . 1 1 1 2 2 2 1 1 1 1 1 . . 2 Propulsion 3 | 3 4 2 2 1 1 1 1 . 2 4 4 3 5 5 5 5 5 2 . Utility 3 | . . . . . . 3 4 8 8 6 6 4 1 2 2 2 2 3 3 Weapon 3 | 1 2 3 5 4 2 1 1 2 1 1 1 . 3 4 5 5 5 5 . Tool/Special . | . . . . . . . . . . . . . . . . . . . . Unused Backups 45 | 6 2 2 . 3 . 4 3 1 5 . . 2 1 . . . . 13 3 Power 4 | . . . . . . 1 . 1 . . . . . . . . . 1 1 Propulsion 16 | 4 1 1 . 2 . 2 1 . 2 . . . . . . . . 3 . Utility 16 | 2 . . . . . 1 1 . 3 . . 2 . . . . . 5 2 Weapon 6 | . 1 . . 1 . . 1 . . . . . 1 . . . . 2 . Tool/Special 3 | . . 1 . . . . . . . . . . . . . . . 2 . Average Slot Usage (%) 87 | . 100 93 100 100 97 71 75 74 79 80 80 91 93 94 94 94 93 89 96 Engine 2 | . 14 11 11 11 10 9 7 3 . . . . . . . . 3 . . Core 2 | . . . . . . . . 2 6 6 6 4 4 5 5 5 4 . . Reactor 2 | . . . . . . . . . . . . . . . . . 1 7 8 Wheel 2 | . 28 22 22 22 20 . . . . . . . . . . . . . . Hover 10 | . . . . . . . . . . . . 16 16 17 17 17 15 17 21 Flight 1 | . . . . . . 8 7 7 6 6 6 . . . . . . . . Device 18 | . 14 12 11 11 11 9 14 14 19 20 20 23 24 17 17 17 15 21 20 Storage 6 | . 14 11 11 11 11 9 7 7 6 6 6 5 5 5 5 5 5 6 4 Processor 5 | . . . . . . . . . . . . 4 10 11 11 11 10 9 14 Protection 6 | . . 3 11 11 11 8 14 14 13 13 13 9 3 11 11 11 10 2 . Energy Gun 7 | . 28 14 . 4 11 9 7 7 12 9 13 7 2 5 5 5 5 6 . Energy Cannon 2 | . . 4 . . . . . . . . . 1 5 5 5 5 5 2 13 Ballistic Gun 3 | . . . . . 2 1 . . . . . 1 7 5 5 5 9 4 . Ballistic Cannon 4 | . . 8 22 17 8 6 6 7 2 . . . 2 5 5 5 5 2 4 Slashing Weapon 4 | . . . . . 8 8 7 6 9 13 13 9 2 . . . . 2 . Peak Build Rating 133 | 9 9 15 15 18 19 52 60 63 75 72 72 78 82 82 78 79 100 133 130 Average Rating 76 | 6 9 13 15 16 17 49 57 60 72 71 72 70 76 78 78 78 92 117 123 On Entrance 54 | . 9 9 15 15 18 19 52 60 62 70 72 72 73 82 78 78 79 100 122 Naked Turns . | . . . . . . . . . . . . . . . . . . . . Heaviest Build 109 | 12 13 22 21 21 18 22 48 50 61 50 50 60 80 80 78 78 106 109 75 Greatest Support 74 | 32 26 26 20 20 20 50 50 50 50 50 50 50 48 48 48 48 48 74 74 Greatest Overweight (x) 22 | . . 2 1 2 1 . . . 1 . . 1 1 1 1 1 2 22 1 Average Overweight (x) . | . . . 1 1 . . . . . . . . 1 1 1 1 1 1 . Largest Inventory Capacity 15 | 8 8 8 8 8 8 8 15 15 15 15 15 15 15 15 15 15 15 15 5 Average Capacity 13 | 7 8 8 8 8 8 8 11 15 15 15 15 15 15 15 15 15 15 14 5 Most Carried 15 | 8 8 8 8 8 8 8 15 15 15 15 15 15 15 15 14 15 15 15 5 Average Carried 12 | 5 7 7 8 7 7 7 10 14 14 15 15 14 14 13 14 14 14 13 5 Final Capacity 15 | 8 8 8 8 8 8 8 15 15 15 15 15 15 15 15 15 15 15 5 5 Final Carried 15 | 8 8 8 8 8 8 8 15 15 15 15 15 14 15 14 14 15 15 5 5 Class Distribution -------------------- 21% | Scavenger-Tank 20% | Mutant 17% | Scavenger-Skirmisher 9% | Scavenger-Gladiator 8% | Scavenger-Mutant 6% | Gladiator 4% | Scavenger-Gunner 3% | Scavenger-Scout Dominant Class ---------------- Mutant | -10/Materials Skirmisher | -9/Materials Scavenger-Mutant | -9/Mines Scavenger-Mutant | -9/Exiles Scavenger-Assassin | -8/Mines Scavenger-Mutant | -8/Materials Mutant | -7/Factory Mutant | -7/Storage Mutant | -6/Factory Mutant | -6/Lower Caves Mutant | -6/Lower Caves Gladiator | -5/Factory Scavenger-Skirmisher | -5/Extension Scavenger-Tank | -5/Cetus Scavenger-Tank | -5/Archives Scavenger-Tank | -5/Hub_04(d) Scavenger-Tank | -4/Factory Scavenger-Gladiator | -3/Research Scavenger-Gunner | -3/Testing Resources | -11 -10 -9 -9 -9 -8 -8 -7 -7 -6 -6 -6 -5 -5 -5 -5 -5 -4 -3 -3 ----------- Run | Yrd Mat Mat Min Exi Min Mat Fac Sto Fac Low Low Fac Ext Cet Arc Hub Fac Res Tes Matter Collected 4443 | 280 10 301 41 . 84 355 95 332 70 20 . 210 670 175 . . . 1646 154 Remotely . | . . . . . . . . . . . . . . . . . . . . Salvage Created 7971 | 201 27 412 . . 66 728 119 804 331 44 . 640 1136 249 . . 74 3052 88 Parts 401 | 13 1 36 . . 5 31 4 46 11 1 . 34 48 6 . . 2 160 3 Haulers Intercepted . | . . . . . . . . . . . . . . . . . . . . Recyclers Shooed 1 | . . . . . . . . . . . . . . . . . 1 . . Parts Field Recycled . | . . . . . . . . . . . . . . . . . . . . Retrieved Matter . | . . . . . . . . . . . . . . . . . . . . Parts Self-Destructed . | . . . . . . . . . . . . . . . . . . . . Prevented 1 | . . . . . . . . . . 1 . . . . . . . . . Kills | -11 -10 -9 -9 -9 -8 -8 -7 -7 -6 -6 -6 -5 -5 -5 -5 -5 -4 -3 -3 ------- Run | Yrd Mat Mat Min Exi Min Mat Fac Sto Fac Low Low Fac Ext Cet Arc Hub Fac Res Tes Combat Hostiles Destroyed 137 | . . 15 . . 1 17 1 18 7 1 . 10 15 4 . . 1 46 1 Melee 37 | . . . . . . 4 . 9 3 . . 6 1 . . . . 13 1 Guns 48 | . . 6 . . 1 7 . 5 4 1 . 3 2 . . . 1 18 . Cannons 45 | . . 9 . . . 6 1 2 . . . 1 10 4 . . . 12 . Classes Destroyed 15 | 3 . 5 . . 1 . 1 1 . . . 1 1 . . . . 2 . Worker 7 | 1 1 . . . . 1 . . . . . . . . . . . 4 . Builder 4 | . . . . . . . . . . . . 1 1 . . . . 2 . Tunneler 5 | 3 . . . . 2 . . . . . . . . . . . . . . Recycler 2 | 1 . . . . . . . . . . . . . . . . . 1 . Operator 2 | . . . . . . . 1 . . . . . . . . . . 1 . Watcher 23 | . . 3 . . . 4 3 2 . . . 2 3 1 . . 1 3 1 Swarmer 29 | . . 7 . . . 4 . 6 3 . . . . . . . . 9 . Grunt 35 | . . 5 . . . 9 . 2 2 1 . 4 5 . . . . 7 . Duelist 3 | . . 1 . . . . . 1 . . . . . . . . . . 1 Sentry 23 | . . 2 . . . 3 . 6 2 . . 1 5 . . . . 4 . Specialist 2 | . . . . . . . . . . . . . . . . . . 2 . Hunter 9 | . . . . . 1 1 1 1 . . . 1 3 . . . . 1 . Programmer 29 | . . . . . . . . 2 . . . 4 . . . . 1 22 . Heavy 1 | . . . . . . . . . . . . . . . . . . 1 . Behemoth 2 | . . . . . . . . . . . . . 2 . . . . . . Cetus Guard 4 | . . . . . . . . . . . . . . 4 . . . . . Best Kill Streak 5 | 5 1 5 . . 1 5 1 4 3 1 . 3 2 5 . . 1 5 1 Combat Bots Only 5 | . . 5 . . 1 4 1 4 3 1 . 3 2 4 . . 1 4 1 Max Kills in Single Turn 2 | 1 1 1 . . 1 1 1 1 1 1 . 1 2 2 . . 1 2 1 Gunslinging . | . . . . . . . . . . . . . . . . . . . . Exploded . | . . . . . . . . . . . . . . . . . . . . Melee 1 | . . . . . . 1 . 1 1 . . 1 1 . . . . 1 1 Uniques/NPCs Destroyed . | . . . . . . . . . . . . . . . . . . . . Combat | -11 -10 -9 -9 -9 -8 -8 -7 -7 -6 -6 -6 -5 -5 -5 -5 -5 -4 -3 -3 -------- Run | Yrd Mat Mat Min Exi Min Mat Fac Sto Fac Low Low Fac Ext Cet Arc Hub Fac Res Tes Hostile Shots Fired 1351 | . . 76 . . 10 81 8 310 89 2 3 98 106 47 . . 3 455 63 Missed 451 | . . 18 . . . 34 3 134 51 2 2 23 36 14 . . 1 114 19 Hits 900 | . . 58 . . 10 47 5 176 38 . 1 75 70 33 . . 2 341 44 Melee 15 | . . 5 . . . . . 4 . . . . . . . . . . 6 Projectile 885 | . . 53 . . 10 47 5 172 38 . 1 75 70 33 . . 2 341 38 AOE 2 | . . . . . . . . 1 . . . 1 . . . . . . . Critical Strikes 39 | . . 1 . . 1 . . 4 . . . 2 1 6 . . . 21 3 Actively Blocked 1 | . . . . . . . . . . . . . . . . . . 1 . Part Disruptions 1 | . . . . . . . . . . . . . . . . . . 1 . Actively Blocked 1 | . . . . . . . . . . . . . . . . . . 1 . Damage Taken 13369 | . . 589 . . 119 520 41 1013 234 . 18 1126 1177 636 . . 510 6458 928 Core 2374 | . . 55 . . 28 21 5 73 11 . . 199 128 54 . . 493 1173 134 Absorbed by Shields 868 | . . . . . . . 15 312 84 . 6 90 152 48 . . 15 146 . Redirected to Shielding 289 | . . 2 . . 6 4 1 9 2 . . 44 2 . . . . 219 . Ignored by Resistances 3901 | . . 172 . . 36 148 16 430 100 . 7 336 364 187 . . 9 1843 253 Regen/Repaired (Parts) 332 | . . . . . . 16 . 316 . . . . . . . . . . . Core Remaining (%) 84 | 100 100 . . . 79 96 . 88 . . 98 . . . . 61 57 . . Volleys Fired 338 | 7 1 52 . . 6 50 11 23 17 2 . 10 46 14 3 . 5 89 2 Largest 5 | 2 2 3 . . 2 2 2 2 3 2 . 3 4 3 2 . 5 5 4 Hottest 327 | 90 100 163 . . 95 102 98 101 181 141 . 154 239 169 71 . 273 291 327 Shots Fired 809 | 14 2 89 . . 12 90 22 46 30 4 . 26 159 28 5 . 25 250 7 Gun 439 | 14 2 26 . . 6 55 11 23 25 4 . 20 84 14 2 . 15 138 . Cannon 354 | . . 57 . . 6 28 11 23 2 . . 6 75 14 3 . 10 112 7 Launcher . | . . . . . . . . . . . . . . . . . . . . Special 16 | . . 6 . . . 7 . . 3 . . . . . . . . . . Kinetic 422 | . . 48 . . 6 43 11 23 2 . . 12 95 27 5 . 15 133 2 Thermal 334 | 14 2 32 . . 6 47 11 23 28 4 . 14 40 1 . . 10 99 3 Explosive . | . . . . . . . . . . . . . . . . . . . . Electromagnetic 53 | . . 9 . . . . . . . . . . 24 . . . . 18 2 Robot Hit Streak 40 | 7 . 10 . . 12 17 23 37 39 40 . 11 24 18 1 . 4 34 2 Robot Miss Streak 4 | 1 2 2 . . . 2 . 1 3 1 . 1 3 1 4 . 2 3 2 Penetration Max 1 | . . . . . . . . . . . . 1 1 1 . . 1 1 . Secondary Targets 5 | . . 2 . . . . . . . . . . . . . . . 3 . Max Gunslinging Chain 1 | . . 1 . . . . . . . . . . . . . . . 1 . Shots Hit Robots 768 | 9 . 54 . . 12 81 29 93 31 4 . 48 120 25 1 . 15 232 14 Core Hits 311 | 6 1 23 . . 5 33 8 27 19 4 . 25 38 12 . . 4 98 8 Critical Kills 13 | . . . . . . . . . . . . . 6 4 . . . 3 . Critical Parts Destroyed 20 | . . . . . . . . 2 . . . . 10 3 1 . 2 2 . Critical Strikes 93 | . . 6 . . . 6 3 14 1 . . 7 19 9 1 . 2 25 . Burn 22 | . . 3 . . . 5 1 3 1 . . . . . . . . 9 . Meltdown 3 | . . . . . . . . . . . . . 2 . . . . 1 . Destroy 33 | . . . . . . . . . . . . . 17 9 1 . 2 4 . Blast 11 | . . 3 . . . 1 . 2 . . . . . . . . . 5 . Corrupt 1 | . . . . . . . . . . . . . . . . . . 1 . Smash 2 | . . . . . . . . 2 . . . . . . . . . . . Sever 19 | . . . . . . . 2 7 . . . 7 . . . . . 3 . Impale 2 | . . . . . . . . . . . . . . . . . . 2 . Melee Attacks 241 | . . 4 . . 3 14 7 57 8 . . 33 4 . . . . 95 16 Impact 25 | . . . . . . . . 9 . . . . . . . . . 16 . Slashing 161 | . . . . . . 12 4 48 8 . . 31 4 . . . . 54 . Piercing 41 | . . . . . . . . . . . . . . . . . . 25 16 Sneak Attacks 15 | . . 1 . . 3 2 3 . . . . 2 . . . . . 4 . Combat Hostiles . | . . . . . . . . . . . . . . . . . . . . Follow-up Attacks 10 | . . . . . . . . . . . . 3 . . . . . 7 . Damage Inflicted 21826 | 111 13 886 . . 132 1649 556 2700 728 90 . 1499 3114 500 28 . 426 8927 467 Guns 7359 | 111 13 188 . . 95 677 186 355 515 90 . 409 1377 221 . . 228 2894 . Cannons 8121 | . . 698 . . 37 564 242 475 . . . 172 1641 279 28 . 198 3646 141 Explosions 178 | . . . . . . . . . . . . . . . . . . 178 . Melee 6144 | . . . . . . 384 128 1870 213 . . 918 96 . . . . 2209 326 Ramming . | . . . . . . . . . . . . . . . . . . . . Kinetic 8608 | . . 591 . . 37 728 242 475 . . . 271 1441 467 28 . 263 3997 68 Thermal 6103 | 111 13 188 . . 95 537 186 355 515 90 . 310 1075 33 . . 163 2359 73 Explosive . | . . . . . . . . . . . . . . . . . . . . Electromagnetic 971 | . . 107 . . . . . . . . . . 502 . . . . 362 . Impact 840 | . . . . . . . . 395 . . . . . . . . . 445 . Slashing 4297 | . . . . . . 384 128 1475 213 . . 918 96 . . . . 1083 . Piercing 1007 | . . . . . . . . . . . . . . . . . . 681 326 Highest Corruption 16 | . . 1 1 1 1 . . 4 . . . 4 4 4 4 4 . 14 16 Average Corruption 4 | . . 1 1 1 1 . . 2 . . . 3 4 4 4 4 . 5 14 Corruption Purged . | . . . . . . . . . . . . . . . . . . . . Corruption Blocked . | . . . . . . . . . . . . . . . . . . . . Effects 93 | . . . 2 . . . . 5 . . . 7 34 4 1 3 . 27 10 Message Errors 24 | . . . . . . . . 2 . . . 1 9 . . 1 . 10 1 Matter Fused 23 | . . . 1 . . . . 2 . . . 4 7 . 1 1 . 5 2 Heat Flow Errors 12 | . . . . . . . . . . . . 1 7 2 . . . . 2 Energy Discharges 9 | . . . . . . . . . . . . . 4 1 . . . 2 2 Parts Rejected 3 | . . . . . . . . . . . . . 1 . . . . 2 . Parts Fused 2 | . . . . . . . . . . . . . . . . . . 1 1 Data Loss (minor) 6 | . . . 1 . . . . . . . . . 1 . . . . 3 1 Data Loss (major) 7 | . . . . . . . . 1 . . . 1 2 . . 1 . 1 1 Misfires 1 | . . . . . . . . . . . . . 1 . . . . . . Alerts 1 | . . . . . . . . . . . . . . . . . . 1 . Weapon Failures 5 | . . . . . . . . . . . . . 2 1 . . . 2 . Overload Shots . | . . . . . . . . . . . . . . . . . . . . Overflow Damage 859 | . . 10 . . . 24 7 150 . . . 3 . 11 . . 35 619 . Projectiles 365 | . . 10 . . . . 7 32 . . . . . 11 . . 35 270 . Explosions 40 | . . . . . . . . . . . . . . . . . . 40 . Melee 454 | . . . . . . 24 . 118 . . . 3 . . . . . 309 . Knockbacks 34 | . . 7 . . . 1 3 6 . . . . 1 . . . . 15 1 Impact 3 | . . . . . . . . . . . . . . . . . . 3 . Kinetic 31 | . . 7 . . . 1 3 6 . . . . 1 . . . . 12 1 Secondary . | . . . . . . . . . . . . . . . . . . . . Self-Inflicted Damage 43 | . . . . . . . . . . . . . . . . . . 43 . Shots 1 | . . . . . . . . . . . . . . . . . . 1 . Rammed . | . . . . . . . . . . . . . . . . . . . . Targets Rammed . | . . . . . . . . . . . . . . . . . . . . Kicked . | . . . . . . . . . . . . . . . . . . . . Crushed . | . . . . . . . . . . . . . . . . . . . . Highest Temperature 772 | 60 39 391 . . 25 414 60 110 126 37 . 303 453 255 10 . 772 699 244 Average Temperature 119 | 26 24 111 . . 13 109 30 28 49 18 . 102 129 93 6 . 317 152 114 Received Heat Transfer 1619 | . . 150 . . . 297 . 210 62 . 9 99 312 . . . . 405 75 Effects 62 | . . 2 . . . 6 . . . . . . 3 . . . 10 41 . Shutdowns 15 | . . 1 . . . 1 . . . . . . . . . . 4 9 . Energy Bleed 7 | . . . . . . 1 . . . . . . 1 . . . . 5 . Interference 15 | . . . . . . 3 . . . . . . 2 . . . 1 9 . Matter Decay 2 | . . . . . . . . . . . . . . . . . 1 1 . Short Circuit 6 | . . 1 . . . 1 . . . . . . . . . . 1 3 . Damage (minor) 2 | . . . . . . . . . . . . . . . . . . 2 . Damage (major) 10 | . . . . . . . . . . . . . . . . . . 10 . Damage (core) 5 | . . . . . . . . . . . . . . . . . 3 2 . Siege Activations . | . . . . . . . . . . . . . . . . . . . . Martial Activations . | . . . . . . . . . . . . . . . . . . . . Shielding Activations . | . . . . . . . . . . . . . . . . . . . . Robots Disrupted . | . . . . . . . . . . . . . . . . . . . . Combat Hostiles . | . . . . . . . . . . . . . . . . . . . . Robots Corrupted 5 | . . . . . . . . 2 . . . . . . . . . 3 . Combat Hostiles 2 | . . . . . . . . 2 . . . . . . . . . . . Parts Fried 12 | . . . . . . . . 3 . . . . 3 . . . . 6 . Impact Corruptions 14 | . . . . . . . . 5 . . . . . . . . . 9 . Robots Melted 5 | . . . . . . . . . . . . . 2 . . . . 3 . Combat Hostiles 5 | . . . . . . . . . . . . . 2 . . . . 3 . Parts Melted 30 | 1 . 2 . . . 2 . . 1 . . 1 5 . . . 1 17 . Heat Transferred 12273 | 297 37 777 . . 222 1641 481 999 1217 199 . 549 1600 50 . . 237 3893 74 Parts Sabotaged . | . . . . . . . . . . . . . . . . . . . . Parts Stolen . | . . . . . . . . . . . . . . . . . . . . Parts Stripped . | . . . . . . . . . . . . . . . . . . . . Power Chain Reactions 1 | . . . . . . . . . . . . . . . . . . 1 . Alert | -11 -10 -9 -9 -9 -8 -8 -7 -7 -6 -6 -6 -5 -5 -5 -5 -5 -4 -3 -3 ------- Run | Yrd Mat Mat Min Exi Min Mat Fac Sto Fac Low Low Fac Ext Cet Arc Hub Fac Res Tes Maximum Alert Level 5 | . . 1 . . . . . . . . . . . . . . . . 5 Low Security (%) 97 | 100 100 78 100 . 100 100 100 100 100 . . 100 100 100 100 100 100 100 . Level 1 . | . . 21 . . . . . . . . . . . . . . . . . Level 2 . | . . . . . . . . . . . . . . . . . . . . Level 3 . | . . . . . . . . . . . . . . . . . . . . Level 4 . | . . . . . . . . . . . . . . . . . . . . Level 5 . | . . . . . . . . . . . . . . . . . . . . High Security . | . . . . . . . . . . . . . . . . . . . . Max Security 1 | . . . . . . . . . . . . . . . . . . . 99 Peak Influence 1641 | 10 12 256 82 . 30 125 30 160 68 . . 70 55 73 . . 155 185 1641 Initial 82 | . . . 82 . . . . . 46 . . . 14 . . . . . 34 Average 63 | 2 1 103 61 . 3 38 2 88 21 . . 11 8 31 . . 53 45 1601 Influence Increases 4341 | 25 21 426 . . 40 490 66 520 192 20 . 289 455 105 . . 183 1448 61 Destroy 0b10 Robot/C 2740 | . . 300 . . 20 340 20 360 140 20 . 200 300 80 . . 20 920 20 Destroy 0b10 Robot/NC 215 | 25 5 15 . . 10 25 20 10 . . . 15 20 5 . . 5 55 5 Destroy Leader 634 | . . 66 . . 10 78 16 104 30 . . 54 36 . . . 12 226 2 Allied During Kill 6 | . . . . . . . . . . . . . 6 . . . . . . Successful Hack 108 | . 16 14 . . . 14 10 9 3 . . . 12 12 . . . 18 . Disable Machine 117 | . . 9 . . . 9 . 18 . . . 18 . . . . 36 27 . Destroy Structure 266 | . . 7 . . . 9 . 4 4 . . 2 36 8 . . 110 82 4 Partial Spotted 30 | . . 15 . . . . . 15 . . . . . . . . . . . Lose Combat Pursuer 225 | . . . . . . 15 . . 15 . . . 45 . . . . 120 30 Influence Decreases 4346 | 25 21 176 218 32 40 490 66 400 293 39 . 254 490 105 . . 183 1378 136 Entered New Map 340 | . . . 168 32 . . . . 74 9 . . 21 . . . . . 36 Time Decay 3211 | 25 21 156 50 . 40 382 66 400 209 30 . 212 347 105 . . 183 985 . Lost Part 625 | . . 20 . . . . . . 10 . . 42 60 . . . . 393 100 Lost Ally 62 | . . . . . . . . . . . . . 62 . . . . . . Purge Threat 108 | . . . . . . 108 . . . . . . . . . . . . . Squads Dispatched 42 | . . 1 . . . 1 2 2 1 . . 2 1 . . . 1 18 13 Investigation 1 | . . . . . . 1 . . . . . . . . . . . . . Extermination 13 | . . . . . . . 1 2 1 . . 1 . . . . 1 7 . Reinforcement 8 | . . 1 . . . . 1 . . . . 1 1 . . . . 4 . Assault 12 | . . . . . . . . . . . . . . . . . . . 12 Garrison 8 | . . . . . . . . . . . . . . . . . . 7 1 Intercept . | . . . . . . . . . . . . . . . . . . . . Searches Triggered . | . . . . . . . . . . . . . . . . . . . . Construction Impeded 1 | . . . . . . . . . . . . . 1 . . . . . . Haulers Reinforced 1 | . . . . . . . . . . . . 1 . . . . . . . Active Scanning Responses . | . . . . . . . . . . . . . . . . . . . . Cargo Convoy Interrupts . | . . . . . . . . . . . . . . . . . . . . Stealth | -11 -10 -9 -9 -9 -8 -8 -7 -7 -6 -6 -6 -5 -5 -5 -5 -5 -4 -3 -3 --------- Run | Yrd Mat Mat Min Exi Min Mat Fac Sto Fac Low Low Fac Ext Cet Arc Hub Fac Res Tes Distress Signals 8 | . . 2 . . . . . 2 . . . 1 . 1 . . . 2 . Communications Jammed . | . . . . . . . . . . . . . . . . . . . . Distress Signals . | . . . . . . . . . . . . . . . . . . . . Times Spotted 212 | . 1 22 . . 1 20 5 19 8 1 1 15 21 5 . . 3 64 26 Peak Tracking Total 17 | . 1 4 . . 1 4 1 4 3 1 1 3 4 5 . . 2 5 17 Tactical Retreats 11 | . . . . . . 1 . . 1 . . . 3 . . . . 5 1 Traps | -11 -10 -9 -9 -9 -8 -8 -7 -7 -6 -6 -6 -5 -5 -5 -5 -5 -4 -3 -3 ------- Run | Yrd Mat Mat Min Exi Min Mat Fac Sto Fac Low Low Fac Ext Cet Arc Hub Fac Res Tes Traps Triggered 16 | . 1 2 . . . 1 1 1 . . . . 3 . . 1 . 6 . Indirectly . | . . . . . . . . . . . . . . . . . . . . Trap Hack Attempts . | . . . . . . . . . . . . . . . . . . . . Triggered . | . . . . . . . . . . . . . . . . . . . . Disarmed . | . . . . . . . . . . . . . . . . . . . . Reprogrammed . | . . . . . . . . . . . . . . . . . . . . Reused . | . . . . . . . . . . . . . . . . . . . . Traps Extracted . | . . . . . . . . . . . . . . . . . . . . Installed . | . . . . . . . . . . . . . . . . . . . . Triggered . | . . . . . . . . . . . . . . . . . . . . Machines | -11 -10 -9 -9 -9 -8 -8 -7 -7 -6 -6 -6 -5 -5 -5 -5 -5 -4 -3 -3 ---------- Run | Yrd Mat Mat Min Exi Min Mat Fac Sto Fac Low Low Fac Ext Cet Arc Hub Fac Res Tes Machines Disabled 13 | . . 1 . . . 1 . 2 . . . 2 . . . . 4 3 . Max in Single Turn 3 | . . 1 . . . 1 . 1 . . . 1 . . . . 3 1 . Garrison Access 1 | . . . . . . 1 . . . . . . . . . . . . . Machines Repaired . | . . . . . . . . . . . . . . . . . . . . Machines Dismantled . | . . . . . . . . . . . . . . . . . . . . Machines Sabotaged . | . . . . . . . . . . . . . . . . . . . . Overloaded Fab Kills . | . . . . . . . . . . . . . . . . . . . . Hacking | -11 -10 -9 -9 -9 -8 -8 -7 -7 -6 -6 -6 -5 -5 -5 -5 -5 -4 -3 -3 --------- Run | Yrd Mat Mat Min Exi Min Mat Fac Sto Fac Low Low Fac Ext Cet Arc Hub Fac Res Tes Machines Accessed 56 | . 6 1 . 4 . 8 5 8 3 . . 2 7 3 . 1 1 7 . Terminals 40 | . 6 1 . . . 4 4 7 1 . . . 7 3 . 1 1 5 . Fabricators 2 | . . . . . . . . . 2 . . . . . . . . . . Repair Stations 3 | . . . . . . 1 . 1 . . . . . . . . . 1 . Recycling Units 3 | . . . . . . 1 . . . . . 1 . . . . . 1 . Scanalyzers 3 | . . . . . . 1 1 . . . . 1 . . . . . . . Garrison Access 1 | . . . . . . 1 . . . . . . . . . . . . . Total Hacks 152 | . 13 3 . 27 . 24 12 30 8 . . 3 10 8 . 3 2 9 . Successful 82 | . 4 3 . 27 . 11 4 16 2 . . 2 4 5 . . 1 3 . Failed 70 | . 9 . . . . 13 8 14 6 . . 1 6 3 . 3 1 6 . Catastrophic 8 | . . . . . . 1 . 3 1 . . . 1 . . . 1 1 . Database Lockouts . | . . . . . . . . . . . . . . . . . . . . Manual 29 | . 2 1 . 1 . 6 3 8 . . . . 1 . . . 1 6 . Terminals 85 | . 13 3 . . . 10 10 17 3 . . . 10 8 . 3 2 6 . Fabricators 5 | . . . . . . . . . 5 . . . . . . . . . . Repair Stations 17 | . . . . . . 2 . 13 . . . . . . . . . 2 . Recycling Units 10 | . . . . . . 8 . . . . . 1 . . . . . 1 . Scanalyzers 6 | . . . . . . 2 2 . . . . 2 . . . . . . . Garrison Access 2 | . . . . . . 2 . . . . . . . . . . . . . Terminal Hacks 57 | . 4 3 . 27 . 2 4 6 . . . . 4 5 . . 1 1 . Record 32 | . . . . 26 . . . 1 . . . . . 5 . . . . . Open Door 5 | . . . . . . . . 2 . . . . 3 . . . . . . Open DSF 1 | . . . . . . . 1 . . . . . . . . . . . . Branch Access Points 3 | . . 1 . . . . 1 1 . . . . . . . . . . . Alert Level 2 | . 1 . . . . . . . . . . . . . . . 1 . . Unreport Threat 1 | . . . . . . 1 . . . . . . . . . . . . . Locate Traps 3 | . 1 1 . . . . 1 . . . . . . . . . . . . Transport Status 1 | . 1 . . . . . . . . . . . . . . . . . . Recall Investigation 1 | . . . . . . . . 1 . . . . . . . . . . . Zone Layout 7 | . 1 1 . . . 1 1 1 . . . . 1 . . . . 1 . Proto ID Catalog 1 | . . . . 1 . . . . . . . . . . . . . . . Fabricator Hacks 2 | . . . . . . . . . 2 . . . . . . . . . . Network Status 1 | . . . . . . . . . 1 . . . . . . . . . . Build 1 | . . . . . . . . . 1 . . . . . . . . . . Repair Station Hacks 13 | . . . . . . 2 . 10 . . . . . . . . . 1 . Scan Component 7 | . . . . . . 1 . 5 . . . . . . . . . 1 . Repair 6 | . . . . . . 1 . 5 . . . . . . . . . . . Recycling Unit Hacks 6 | . . . . . . 4 . . . . . 1 . . . . . 1 . Report Inventory 2 | . . . . . . . . . . . . 1 . . . . . 1 . Retrieve Matter 4 | . . . . . . 4 . . . . . . . . . . . . . Scanalyzer 3 | . . . . . . 2 . . . . . 1 . . . . . . . Insert Component 2 | . . . . . . 1 . . . . . 1 . . . . . . . Analyze 1 | . . . . . . 1 . . . . . . . . . . . . . Garrison Access Hacks 1 | . . . . . . 1 . . . . . . . . . . . . . Seal Access 1 | . . . . . . 1 . . . . . . . . . . . . . Unauthorized Hacks . | . . . . . . . . . . . . . . . . . . . . Terminals . | . . . . . . . . . . . . . . . . . . . . Fabricators . | . . . . . . . . . . . . . . . . . . . . Repair Stations . | . . . . . . . . . . . . . . . . . . . . Recycling Units . | . . . . . . . . . . . . . . . . . . . . Scanalyzers . | . . . . . . . . . . . . . . . . . . . . Garrison Access . | . . . . . . . . . . . . . . . . . . . . Data Cores Recovered 1 | . . . . . . . . . . . . . . . . . . 1 . Used . | . . . . . . . . . . . . . . . . . . . . Hacking Detections 44 | . 6 1 . . . 8 4 7 2 . . 1 4 3 . 1 1 6 . Full Trace Events . | . . . . . . . . . . . . . . . . . . . . Feedback Events . | . . . . . . . . . . . . . . . . . . . . Feedback Blocked . | . . . . . . . . . . . . . . . . . . . . Robot Schematics Acquired . | . . . . . . . . . . . . . . . . . . . . Robots Built . | . . . . . . . . . . . . . . . . . . . . Authchips . | . . . . . . . . . . . . . . . . . . . . Time . | . . . . . . . . . . . . . . . . . . . . Total Robot Build Rating . | . . . . . . . . . . . . . . . . . . . . Part Schematics Acquired . | . . . . . . . . . . . . . . . . . . . . Parts Built 2 | . . . . . . . . . 2 . . . . . . . . . . Authchips . | . . . . . . . . . . . . . . . . . . . . Time 106 | . . . . . . . . . 106 . . . . . . . . . . Total Part Build Rating 12 | . . . . . . . . . 12 . . . . . . . . . . Parts Repaired 6 | . . . . . . 1 . 5 . . . . . . . . . . . Time 216 | . . . . . . 26 . 190 . . . . . . . . . . . Parts Recycled . | . . . . . . . . . . . . . . . . . . . . Recycled Matter . | . . . . . . . . . . . . . . . . . . . . Retrieved Matter . | . . . . . . . . . . . . . . . . . . . . Retrieved Components . | . . . . . . . . . . . . . . . . . . . . Parts Scanalyzed 1 | . . . . . . 1 . . . . . . . . . . . . . Part Schematics Acquired . | . . . . . . . . . . . . . . . . . . . . Parts Damaged . | . . . . . . . . . . . . . . . . . . . . Bothacking | -11 -10 -9 -9 -9 -8 -8 -7 -7 -6 -6 -6 -5 -5 -5 -5 -5 -4 -3 -3 ------------ Run | Yrd Mat Mat Min Exi Min Mat Fac Sto Fac Low Low Fac Ext Cet Arc Hub Fac Res Tes Used RIF Installer . | . . . . . . . . . . . . . . . . . . . . Robots Hacked 7 | . . 1 . . 1 2 1 . . . . 2 . . . . . . . Non-combat 7 | . . 1 . . 1 2 1 . . . . 2 . . . . . . . Combat . | . . . . . . . . . . . . . . . . . . . . Robot Hacks Applied 9 | . . 1 . . 1 2 3 . . . . 2 . . . . . . . parse_system 1 | . . 1 . . . . . . . . . . . . . . . . . no_distress 6 | . . . . . 1 2 1 . . . . 2 . . . . . . . find_fabricator 1 | . . . . . . . 1 . . . . . . . . . . . . find_dsf 1 | . . . . . . . 1 . . . . . . . . . . . . Relay Couplers Released . | . . . . . . . . . . . . . . . . . . . . Fabnet Peak Effective % . | . . . . . . . . . . . . . . . . . . . . Robots Rewired . | . . . . . . . . . . . . . . . . . . . . Allies Hacked . | . . . . . . . . . . . . . . . . . . . . Hacks Repelled . | . . . . . . . . . . . . . . . . . . . . Allies | -11 -10 -9 -9 -9 -8 -8 -7 -7 -6 -6 -6 -5 -5 -5 -5 -5 -4 -3 -3 -------- Run | Yrd Mat Mat Min Exi Min Mat Fac Sto Fac Low Low Fac Ext Cet Arc Hub Fac Res Tes Total Allies 6 | . . . . . . . . . . . . . 6 . . . . . . Largest Group 3 | . . . . . . . . . . . . . 3 . . . . . . Highest-Rated Group 87 | . . . . . . . . . . . . . 87 . . . . . . Highest-Rated Ally 39 | . . . . . . . . . . . . . 39 . . . . . . Total Orders . | . . . . . . . . . . . . . . . . . . . . Ally Attacks 32 | . . . . . . . . . . . . . 32 . . . . . . Total Damage 530 | . . . . . . . . . . . . . 530 . . . . . . Kills . | . . . . . . . . . . . . . . . . . . . . Allies Corrupted . | . . . . . . . . . . . . . . . . . . . . Allies Melted . | . . . . . . . . . . . . . . . . . . . . Intel | -11 -10 -9 -9 -9 -8 -8 -7 -7 -6 -6 -6 -5 -5 -5 -5 -5 -4 -3 -3 ------- Run | Yrd Mat Mat Min Exi Min Mat Fac Sto Fac Low Low Fac Ext Cet Arc Hub Fac Res Tes Active Infowar (turns) 9373 | 49 189 498 100 263 280 415 . . 544 174 17 1037 1891 245 63 65 564 2979 . Optics 6641 | . . . . . . . . . . . . 1035 1891 245 63 65 564 2778 . Terrain 1794 | 49 189 498 100 263 280 415 . . . . . . . . . . . . . Cloaking 2158 | . . . . . . . . . 544 174 17 1018 405 . . . . . . ECM 1170 | . . . . . . . . . . . . . 1 . . . . 1169 . Robot Analysis Total . | . . . . . . . . . . . . . . . . . . . . Derelict Logs Recovered 1 | . . . 1 . . . . . . . . . . . . . . . . Drone Launches . | . . . . . . . . . . . . . . . . . . . . Drone Recoveries . | . . . . . . . . . . . . . . . . . . . . Exploration | -11 -10 -9 -9 -9 -8 -8 -7 -7 -6 -6 -6 -5 -5 -5 -5 -5 -4 -3 -3 ------------- Run | Yrd Mat Mat Min Exi Min Mat Fac Sto Fac Low Low Fac Ext Cet Arc Hub Fac Res Tes Turns Passed 12233 | 127 189 498 100 263 280 1091 485 873 577 174 17 1156 1912 245 63 65 564 3343 211 Spaces Moved 7485 | 78 200 341 105 270 304 647 496 447 305 320 34 516 1141 154 43 49 343 1487 205 Core 16 | 6 . . . . . . . . . . . . . . . . . 10 . Treads . | . . . . . . . . . . . . . . . . . . . . Legs . | . . . . . . . . . . . . . . . . . . . . Wheels 1292 | 72 200 341 105 270 304 . . . . . . . . . . . . . . Hover 3920 | . . . . . . . . . . . . 508 1141 154 43 49 343 1477 205 Flight 2257 | . . . . . . 647 496 447 305 320 34 8 . . . . . . . Fastest Speed 43 | 50 90 90 95 95 80 50 50 50 50 50 50 66 129 129 129 129 129 43 48 Average Speed 94 | 95 90 90 95 95 82 50 50 50 84 50 50 127 129 129 129 129 138 108 54 Slowest Speed 1150 | 100 90 110 95 110 95 50 50 50 150 50 50 150 129 129 129 129 192 1150 110 Overloaded Moves . | . . . . . . . . . . . . . . . . . . . . Propulsion Burnouts . | . . . . . . . . . . . . . . . . . . . . Robots Hopped 1 | . . . . . . 1 . . . . . . . . . . . . . Potential Cave-ins 13 | . . . . . . . . . . . . . . . . . . 13 . Cave-ins Triggered 1 | . . . . . . . . . . . . . . . . . . 1 . Exploration Rate (%) 39 | 4 56 22 25 63 71 51 13 86 9 69 11 14 67 66 75 7 13 37 22 Regions Visited 19 Branch Regions 11 Pre-discovered Areas 1 | . . . . . . . . 1 . . . . . . . . . . . Known Exits Taken 2 | . . 1 . . . . 1 . . . . . . . . . . . . Unknown Exits Taken 17 | 1 1 . 1 1 1 1 . 1 1 1 1 1 1 1 1 1 1 1 . Scrap Searched 10 | . . . . . 2 . . . . 6 2 . . . . . . . . Spaces Dug 49 | . . 6 . . . 6 . . 1 . . 1 . . . . . 33 2 Terrain Destroyed 175 | . . 6 . . . 8 . 4 4 . . 1 17 3 . . 62 68 2 Melee 37 | . . . . . . . . . 1 . . 1 . . . . . 33 2 Projectile 61 | . . 6 . . . 8 . 4 3 . . . 17 3 . . 7 13 . AOE 77 | . . . . . . . . . . . . . . . . . 55 22 . Terrain Rammed . | . . . . . . . . . . . . . . . . . . . . Walls Destroyed . | . . . . . . . . . . . . . . . . . . . . Machines Disabled . | . . . . . . . . . . . . . . . . . . . . Actions | -11 -10 -9 -9 -9 -8 -8 -7 -7 -6 -6 -6 -5 -5 -5 -5 -5 -4 -3 -3 --------- Run | Yrd Mat Mat Min Exi Min Mat Fac Sto Fac Low Low Fac Ext Cet Arc Hub Fac Res Tes Total 11616 | 120 208 430 105 277 322 1292 705 961 577 328 33 943 1468 172 45 50 422 2890 268 Wait 3063 | . . 3 1 . . 539 166 400 227 6 . 358 197 2 . . 61 1071 32 Move 7464 | 77 199 340 104 269 303 644 495 446 304 319 33 515 1140 153 42 48 342 1486 205 Hop 1 | . . . . . . 1 . . . . . . . . . . . . . Pick Up 167 | 21 3 8 . 1 3 12 13 7 7 . . 11 15 1 . 1 3 61 . Fast Attach 60 | . 1 3 . 1 . 3 1 7 2 . . 4 1 . . 1 1 28 7 Attach 90 | 7 . 2 . . 3 1 2 1 3 . . 8 10 2 . . 2 49 . Detach 3 | . . . . . 1 . . 1 . . . . . . . . . 1 . Swap 66 | 1 . 10 . 1 2 13 4 7 2 1 . 3 7 . . . 3 12 . Drop 107 | 7 4 8 . 5 1 15 6 12 8 . . 5 9 . . . 5 16 6 Fire 338 | 7 1 52 . . 6 50 11 23 17 2 . 10 46 14 3 . 5 89 2 Melee 218 | . . 4 . . 3 14 7 57 7 . . 29 4 . . . . 77 16 Ram . | . . . . . . . . . . . . . . . . . . . . Kick . | . . . . . . . . . . . . . . . . . . . . Crush . | . . . . . . . . . . . . . . . . . . . . Escape Stasis 39 | . . . . . . . . . . . . . 39 . . . . . . Rewire . | . . . . . . . . . . . . . . . . . . . . Trap . | . . . . . . . . . . . . . . . . . . . . Miscellaneous . | . . . . . . . . . . . . . . . . . . . . Route ------- -11/Scrapyard -10/Materials (discovered 2 exits: *Mat x2) -9/Materials (discovered 2 exits: *Min x2) -9/Mines (discovered 2 exits: *Mat / *Exi) -9/Exiles (discovered 2 exits: [*Min x2]) -8/Mines -8/Materials -7/Factory (discovered 4 exits: *Sto x2 / Low x2) -7/Storage (discovered 2 exits: *Fac / Rec) -6/Factory -6/Lower Caves -6/Lower Caves -5/Factory -5/Extension (discovered 2 exits: *Fac / *Cet) -5/Cetus -5/Archives (discovered 2 exits: *Hub x2) -5/Hub_04(d) -4/Factory -3/Research -3/Testing History --------- Turn | Location | Event 8 | -11/Scrapyard | Discovered new exit (range 15) 128 | -11/Scrapyard | Entered Materials 129 | -10/Materials | Met a group of wandering Federalists 250 | -10/Materials | Discovered new exit (range 10) 297 | -10/Materials | Discovered new exit (range 12) 300 | -10/Materials | Build established: Mutant 317 | -10/Materials | Entered another Materials area 317 | -9/Materials | Evolved 2 slots: Utility x1, Weapon x1 798 | -9/Materials | Discovered new exit (range 12) 798 | -9/Materials | Identified exit to Mines 815 | -9/Materials | Entered Mines 874 | -9/Mines | Learned Materials emergency access door positions 879 | -9/Mines | Discovered new exit (range 4) 902 | -9/Mines | Build established: Scavenger-Mutant 911 | -9/Mines | Deemed a non-threat by the Exiles lab entrance 912 | -9/Mines | Discovered new exit (range 5) 915 | -9/Mines | Entered Exiles 931 | -9/Exiles | Discovered new exit (range 15) 948 | -9/Exiles | Met 8R-AWN 966 | -9/Exiles | Met EX-HEX 999 | -9/Exiles | Met EX-BIN 1014 | -9/Exiles | Aligned with FarCom system 1015 | -9/Exiles | Given EX-Vault access code 1039 | -9/Exiles | Opened EX-Vault 1052 | -9/Exiles | Found Flying Fortress v7 1085 | -9/Exiles | Exiles lab attacked by MAIN.C 1165 | -9/Exiles | Discovered new exit (range 14) 1178 | -9/Exiles | Left Exiles lab with Flying Fortress v7 1178 | -9/Exiles | Entered Mines 1444 | -8/Mines | Discovered new exit (range 9) 1458 | -8/Mines | Entered Materials 1458 | -8/Materials | Evolved 2 slots: Propulsion x2 1758 | -8/Materials | Build established: Scavenger-Scout 1847 | -8/Materials | Repaired Core Shielding 2235 | -8/Materials | Build established: Scavenger-Mutant 2474 | -8/Materials | Discovered new exit (range 16) 2549 | -8/Materials | Entered Factory 2549 | -7/Factory | Evolved 2 slots: Utility x2 2612 | -7/Factory | Build established: Mutant 3007 | -7/Factory | Discovered new exit (range 10) 3007 | -7/Factory | Identified exit to Storage 3007 | -7/Factory | Identified exit to Lower Caves 3034 | -7/Factory | Entered Storage 3237 | -7/Storage | Repaired Hrd. Medium Armor Plating 3277 | -7/Storage | Repaired Lgt. Deuterium Engine 3316 | -7/Storage | Repaired Imp. Heat Sink 3362 | -7/Storage | Repaired Power Maul 3395 | -7/Storage | Repaired Shield Generator 3415 | -7/Storage | Learned location of Armory (-4) 3583 | -7/Storage | Identified exit to Recycling 3897 | -7/Storage | Discovered new exit (range 12) 3907 | -7/Storage | Entered Factory 3907 | -6/Factory | Evolved 2 slots: Utility x1, Weapon x1 4094 | -6/Factory | Fabricated Cmb. Gravmag System (x2) 4445 | -6/Factory | Discovered new exit (range 6) 4484 | -6/Factory | Entered Lower Caves 4649 | -6/Lower Caves | Discovered new exit (range 9) 4658 | -6/Lower Caves | Entered another Lower Caves area 4669 | -6/Lower Caves | Discovered new exit (range 13) 4669 | -6/Lower Caves | Spotted B-75 Beast 4675 | -6/Lower Caves | Entered Factory 4675 | -5/Factory | Evolved 2 slots: Utility x2 4984 | -5/Factory | Build established: Gladiator 5510 | -5/Factory | Lost 3 parts (2u1w) 5615 | -5/Factory | Lost 3 parts (1p2w) 5807 | -5/Factory | Discovered new exit (range 20) 5831 | -5/Factory | Entered Extension 5893 | -5/Extension | Rescued a captive Derelict 5895 | -5/Extension | Rescued a captive Derelict 5948 | -5/Extension | Build established: Scavenger-Skirmisher 6214 | -5/Extension | Spotted B-75 Beast 6256 | -5/Extension | Destroyed B-75 Beast 6272 | -5/Extension | Spotted B-75 Beast 6533 | -5/Extension | Build established: Scavenger-Tank 6954 | -5/Extension | Rescued a captive Derelict 6955 | -5/Extension | Rescued a captive Derelict 6958 | -5/Extension | Build established: Scavenger-Skirmisher 7240 | -5/Extension | Rescued a captive Derelict 7241 | -5/Extension | Rescued a captive Derelict 7469 | -5/Extension | Destroyed B-75 Beast 7508 | -5/Extension | Lost 3 allies 7691 | -5/Extension | Discovered new exit (range 20) 7692 | -5/Extension | Discovered new exit (range 19) 7743 | -5/Extension | Entered Cetus 7759 | -5/Cetus | Spotted Cetus Guard 7760 | -5/Cetus | Spotted Cetus Guard 7763 | -5/Cetus | Spotted Cetus Guard 7763 | -5/Cetus | Spotted Cetus Guard 7773 | -5/Cetus | Destroyed Cetus Guard 7786 | -5/Cetus | Destroyed Cetus Guard 7798 | -5/Cetus | Destroyed Cetus Guard 7804 | -5/Cetus | Destroyed Cetus Guard 7866 | -5/Cetus | Build established: Scavenger-Tank 7964 | -5/Cetus | Discovered new exit (range 19) 7988 | -5/Cetus | Entered Archives 8009 | -5/Archives | Met Zhirov 8012 | -5/Archives | Discovered new exit (range 20) 8015 | -5/Archives | Reinforcements dispatched to Archives 8021 | -5/Archives | Discovered new exit (range 20) 8051 | -5/Archives | Entered Hub_04(d) 8053 | -5/Hub_04(d) | Discovered new exit (range 19) 8116 | -5/Hub_04(d) | Entered Factory 8116 | -4/Factory | Evolved 2 slots: Power x1, Weapon x1 8528 | -4/Factory | Discovered new exit (range 5) 8680 | -4/Factory | Entered Research 8680 | -3/Research | Evolved 2 slots: Propulsion x1, Utility x1 9575 | -3/Research | Lost 8 parts (2p1n4u1w) 9829 | -3/Research | Build established: Scavenger-Skirmisher 10050 | -3/Research | Lost 7 parts (1n3u3w) 10262 | -3/Research | Garrison activated, responded to threat 10342 | -3/Research | Lost 3 parts (1u2w) 10412 | -3/Research | Garrison activated, responded to threat 10567 | -3/Research | Garrison activated, responded to threat 10597 | -3/Research | Lost 3 parts (1n2w) 10825 | -3/Research | Spotted B-86 Titan 11109 | -3/Research | Build established: Scavenger-Gladiator 11223 | -3/Research | Lost 4 parts (1n2u1w) 11458 | -3/Research | Crushed by falling debris 11489 | -3/Research | Lost 3 parts (1n2u) 11493 | -3/Research | Found Prototype Processor 11658 | -3/Research | Core integrity fell below 50% 11685 | -3/Research | System corruption reached 10% 11699 | -3/Research | Core integrity fell below 20% 11732 | -3/Research | Lost 18 parts (2p5n5u6w) 11766 | -3/Research | Identified Exp. Targeting Computer 11975 | -3/Research | Discovered new exit (range 15) 12023 | -3/Research | Entered Testing 12024 | -3/Testing | Maximum security lockdown engaged 12051 | -3/Testing | Build established: Scavenger-Gunner 12075 | -3/Testing | Garrison activated, responded to threat 12234 | -3/Testing | Destroyed by Y-72 Warden with Railgun Last Messages --------------- 12222_ Gravity Neutralizer destroyed. 12224_ ALERT: Assault forces dispatched. 12224_ Lgt. Antimatter Cannon severed. 12226_ Neutron Cannon destroyed. 12226_ Cmb. Gravmag System destroyed. 12226_ C-30 ARC bursts open, deploying its payload. 12226_ G-73 Enforcer unfolds itself. 12226_ G-67 Veteran unfolds itself. 12226_ M-36 Artificer unfolds itself. 12226_ Hvy. Proton Cannon destroyed. 12226_ L-61 Swordsman destroyed. 12227_ System corrupted: Energy discharge (-140). 12228_ M-36 Artificer repairs Y-72 Warden. 12231_ Imp. Antigrav System destroyed. 12232_ P-80 Master resets M-36 Artificer, system corruption cleaned. 12234_ Adv. Cooling System destroyed. 12234_ Penetrated by Slug. Map ----- +----------------------------------------------------+ | | | | | | | | | | | | | | | | | | | | | | | | | | | | | ?????????????????###############?????????????????? | | ?????????????????# #?????????????????? | | ?????????????????# """ """ ! #?????????????????? | | ?????????????????# """" """" #?????????????????? | | ?????????????????# """" """" #?????????????????? | | ?????????????##### """ """ ! #?????????????????? | | ??????????# # #?????????????????? | | ??????????# """" # """ """ #?????????????????? | | ####??????# """" # """"m"""" %#?????????????????? | | #??????# """" # """" """" #?????????????????? | | #??????# """" + """epp #?????????????????? | | #??????# # m gggY@ p ##????????????????? | | #############+#######g######;#????????????????? | | "" + bg!g #???###????????????????? | | "" # gg #??????????????????????? | | "" # b#??????????????????????? | | + % #??????????????????????? | | #### #######+##### #??????????????????????? | | #???# ## #??????????????????????? | | #???# C T ## #??????????????????????? | | #???# ] ## #??????????????????????? | | #???# / =## #??????????????????????? | | ##### #???# /= ## #??????????????????????? | | ????# #???# /= ## #??????????????????????? | | ##### #???######### #??????????????????????? | | """ + #???????????# #??????????????????????? | | # ############# #??????????????????????? | | # ??????????????????????? | | # ??????????????????????? | | !" # ???????????????????????? | | """ # [ """"" """"" "?????????????????????????? | | ##### """"" """"" ??????????????????????????? | | """"" """"" """"??????????????????????? | | ?????????????????????? | | """## ! ?????????????????????? | | ?#### ?????????????????????? | +----------------------------------------------------+ Best States ------------- Heat Dissipation 96 Energy Generation 39 Energy Capacity 975 Matter Stores 300 Matter Capacity 300 Sight Range 20 Terrain Scan Range 16 Terrain Scan Density 10 ECM Strength 2 Cloak Strength 2 Additional Mass Support 12 EM Shielding 6 Armor Coverage 450 Resistance: KI 45 Resistance: TH 20 Resistance: EX 20 Resistance: EM 20 Resistance: I 20 Resistance: S 20 Resistance: P 20 Core Shielding 20 Propulsion Shielding 66 Utility Shielding 66 Melee Speed Boost 30 Evasion (%) 60 Targeting Accuracy 17 Melee Accuracy 6 Offensive Hacking 20 Item Schematics ----------------- None Robot Schematics ------------------ None Fabricated ------------ Cmb. Gravmag System | x2 | -6/Factory | Preloaded Repaired ---------- Core Shielding | 68% | -8/Materials Hrd. Medium Armor Plating | 44% | -7/Storage Lgt. Deuterium Engine | 24% | -7/Storage Imp. Heat Sink | 35% | -7/Storage Power Maul | 18% | -7/Storage Shield Generator | 86% | -7/Storage Alien Tech Used ----------------- None Achievements -------------- Dangerous Findings Explorer Leap Before You Look Oops Challenges ------------ None Game ------ Seed WeaponsDefenseCorpse Manual? 0 Play Time 03:06:57 Cumulative 15.2 hours Start 2025.07.23 @ 23:21:04 End 2025.07.24 @ 12:13:58 Sessions 3 Manual Loads 0 Difficulty Adventurer Special Mode None Game No. 11 Rogue 0 Adventurer 11 Explorer 0 Win Type - Total 0 Types 0/0/0/0/0/0/0/0/0/0 Lore% 11 Gallery% 22 Achievement% 20 Wizard Run 0 Options --------- Layout 1 ASCII 0 Keyboard 0 Movement Mouse Keybinds 0 Fullscreen 1 Font 24/Smallcaps Map View 50x35 Zoom Use 0% Tactical HUD 1 Map Filters NONE Filters NONE Steam 1 RUN: 61f5eab9-0eaa-4e3d-b936-9dd1b414c598